Cogmind - Beta 15 @@@ ROGUE MODE // 2025.07.22 @ 19:25:30 Player: shapeshifter Result: Destroyed by Y-45 Defender with Beam Rifle Performance ------------- Evolutions (2) 1000 Regions Visited (4) 800 Robots Destroyed (15) 75 Value Destroyed (482) 482 Prototype IDs (3) 60 Alien Tech Used (0) 0 Bonus (0) 0 TOTAL SCORE: 2417 Bonus ------- None Cogmind --------- Core Integrity 0/550 Matter 300/300 Energy 100/100 System Corruption 0% Temperature Cool (9) Movement Core (50) Location -8/Materials Parts ------- > --- POWER (1) -------- (None) > --- PROPULSION (3) --- (None) > --- UTILITY (4) ------ (None) > --- WEAPON (3) ------- (None) > --- INVENTORY (5) ---- Light Ion Engine Small Storage Unit Medium Matter Pod (100) Arc Projector Arc Projector Peak State ------------ > --- POWER ------------ Light Ion Engine > --- PROPULSION ------- Light Treads Compact Wheel Compact Wheel > --- UTILITY ---------- Small Storage Unit Subdweller Optics Seismic Detector Shock Absorption System > --- WEAPON ----------- Arc Projector Medium Laser Improved Assault Rifle > --- INVENTORY -------- Light Ion Engine Light Treads Medium Matter Pod Arc Projector Arc Projector Arc Projector Heavy Particle Gun Light Assault Rifle [Rating: 22] Favorites ----------- Power Light Ion Engine Engine Light Ion Engine Propulsion Compact Wheel Treads Light Treads Wheel Compact Wheel Utility Small Storage Unit Device Seismic Detector Storage Small Storage Unit Weapon Medium Laser Energy Gun Medium Laser Ballistic Gun Assault Rifle Launcher Grenade Launcher Build | -11 -10 -10 -10 -8 ------- Run | Yrd Mat Min Sub Mat Slots Evolved 4 | . . . . 4 Power . | . . . . . Propulsion 1 | . . . . 1 Utility 2 | . . . . 2 Weapon 1 | . . . . 1 Parts Attached 21 | 7 . . 2 12 Power 2 | 1 . . . 1 Engine 2 | 1 . . . 1 Core . | . . . . . Reactor . | . . . . . Propulsion 8 | 2 . . . 6 Treads 2 | . . . . 2 Leg . | . . . . . Wheel 6 | 2 . . . 4 Hover . | . . . . . Flight . | . . . . . Utility 4 | 2 . . . 2 Device 3 | 1 . . . 2 Storage 1 | 1 . . . . Processor . | . . . . . Hackware . | . . . . . Protection . | . . . . . Artifact . | . . . . . Weapon 7 | 2 . . 2 3 Energy Gun 3 | 1 . . . 2 Energy Cannon . | . . . . . Ballistic Gun 3 | 1 . . 1 1 Ballistic Cannon . | . . . . . Launcher 1 | . . . 1 . Special Weapon . | . . . . . Impact Weapon . | . . . . . Slashing Weapon . | . . . . . Piercing Weapon . | . . . . . Special Melee Weapon . | . . . . . Unidentified Prototypes 1 | . . . . 1 Parts Lost 19 | . . . 1 18 Power 2 | . . . . 2 Propulsion 7 | . . . . 7 Utility 3 | . . . . 3 Weapon 7 | . . . 1 6 Highest Loss Streak 10 | . . . 1 10 To Critical Strikes . | . . . . . Average Backups 6 | 3 7 7 7 6 Power . | . 1 1 1 1 Propulsion 2 | 2 2 2 2 1 Utility 1 | . 1 2 2 1 Weapon 2 | . 1 2 1 3 Tool/Special . | . . . . . Unused Backups 10 | 2 2 . 1 5 Power 1 | . . . . 1 Propulsion 5 | 2 2 . . 1 Utility 2 | . . . 1 1 Weapon 2 | . . . . 2 Tool/Special . | . . . . . Average Slot Usage (%) 89 | . 100 100 98 76 Engine 10 | . 14 14 14 6 Treads 2 | . . . . 6 Wheel 22 | . 28 28 28 15 Device 17 | . 14 14 14 21 Storage 11 | . 14 14 14 7 Energy Gun 11 | . 14 14 6 10 Ballistic Gun 11 | . 14 14 12 7 Launcher 1 | . . . 7 . Peak Build Rating 22 | 7 7 7 7 22 Average Rating 9 | 4 7 7 6 15 On Entrance 5 | . 7 7 7 7 Naked Turns 17 | . . . . 17 Heaviest Build 23 | 13 13 13 14 23 Greatest Support 48 | 32 32 32 32 48 Greatest Overweight (x) 2 | . . . . 2 Average Overweight (x) . | . . . . . Largest Inventory Capacity 8 | 8 8 8 8 8 Average Capacity 7 | 7 8 8 8 7 Most Carried 8 | 7 8 7 8 8 Average Carried 6 | 4 7 7 7 6 Final Capacity 8 | 8 8 8 8 5 Final Carried 7 | 7 7 7 7 5 Class Distribution -------------------- 79% | Mutant 16% | Tank 4% | Scavenger-Mutant Dominant Class ---------------- Mutant | -10/Materials Mutant | -10/Mines Mutant | -10/Subcaves Mutant | -8/Materials Resources | -11 -10 -10 -10 -8 ----------- Run | Yrd Mat Min Sub Mat Matter Collected 719 | 282 145 . 90 202 Remotely . | . . . . . Salvage Created 588 | 106 148 . 123 211 Parts 38 | 8 12 . 7 11 Haulers Intercepted . | . . . . . Recyclers Shooed . | . . . . . Parts Field Recycled . | . . . . . Retrieved Matter . | . . . . . Parts Self-Destructed 5 | . . . 5 . Prevented . | . . . . . Kills | -11 -10 -10 -10 -8 ------- Run | Yrd Mat Min Sub Mat Combat Hostiles Destroyed 10 | . 2 . 4 4 Guns 6 | . 2 . . 4 AOE 4 | . . . 4 . Classes Destroyed 6 | 2 3 . 1 . Builder 1 | . 1 . . . Tunneler 1 | 1 . . . . Recycler 1 | 1 . . . . Watcher 2 | . 2 . . . Grunt 6 | . 2 . . 4 Subdweller 4 | . . . 4 . Best Kill Streak 4 | 2 2 . 4 2 Combat Bots Only 4 | . 2 . 4 2 Max Kills in Single Turn 1 | 1 1 . 1 1 Gunslinging . | . . . . . Exploded 1 | . . . 1 . Melee . | . . . . . Uniques/NPCs Destroyed . | . . . . . Combat | -11 -10 -10 -10 -8 -------- Run | Yrd Mat Min Sub Mat Hostile Shots Fired 164 | . 10 . 13 141 Missed 49 | . 4 . 4 41 Hits 115 | . 6 . 9 100 Projectile 115 | . 6 . 9 100 Critical Strikes 3 | . . . . 3 Damage Taken 1954 | . 75 . 199 1680 Core 611 | . 12 . 40 559 Absorbed by Shields . | . . . . . Core Remaining (%) 89 | 100 . . 79 . Volleys Fired 69 | 4 15 . 6 44 Largest 2 | 2 2 . 2 2 Hottest 73 | 70 70 . 50 73 Shots Fired 95 | 8 29 . 11 47 Gun 89 | 8 29 . 5 47 Cannon . | . . . . . Launcher 6 | . . . 6 . Special . | . . . . . Kinetic 65 | 4 15 . 5 41 Thermal 22 | 4 14 . . 4 Explosive 6 | . . . 6 . Electromagnetic 2 | . . . . 2 Robot Hit Streak 15 | 3 4 . 6 15 Robot Miss Streak 3 | 2 3 . 1 3 Penetration Max . | . . . . . Secondary Targets . | . . . . . Shots Hit Robots 68 | 3 18 . 8 39 Core Hits 35 | 2 9 . 8 16 Critical Kills . | . . . . . Critical Parts Destroyed 1 | . . . . 1 Critical Strikes 4 | 1 1 . . 2 Burn 3 | 1 1 . . 1 Destroy 1 | . . . . 1 Melee Attacks . | . . . . . Impact . | . . . . . Slashing . | . . . . . Piercing . | . . . . . Sneak Attacks . | . . . . . Combat Hostiles . | . . . . . Follow-up Attacks . | . . . . . Damage Inflicted 1132 | 40 253 . 417 422 Guns 744 | 40 253 . 29 422 Cannons . | . . . . . Explosions 388 | . . . 388 . Melee . | . . . . . Ramming . | . . . . . Kinetic 569 | 15 151 . 29 374 Thermal 152 | 25 102 . . 25 Explosive 388 | . . . 388 . Electromagnetic 23 | . . . . 23 Impact . | . . . . . Slashing . | . . . . . Piercing . | . . . . . Highest Corruption . | . . . . . Average Corruption . | . . . . . Corruption Purged . | . . . . . Corruption Blocked . | . . . . . Overload Shots . | . . . . . Overflow Damage . | . . . . . Projectiles . | . . . . . Explosions . | . . . . . Melee . | . . . . . Knockbacks . | . . . . . Impact . | . . . . . Kinetic . | . . . . . Secondary . | . . . . . Self-Inflicted Damage 17 | . . . 17 . Shots 2 | . . . 2 . Rammed . | . . . . . Targets Rammed . | . . . . . Kicked . | . . . . . Crushed . | . . . . . Highest Temperature 96 | 36 96 . . 57 Average Temperature 25 | 19 32 . . 16 Received Heat Transfer 1026 | . 42 . 48 936 Siege Activations . | . . . . . Martial Activations . | . . . . . Shielding Activations . | . . . . . Robots Disrupted . | . . . . . Combat Hostiles . | . . . . . Robots Corrupted . | . . . . . Combat Hostiles . | . . . . . Parts Fried . | . . . . . Impact Corruptions . | . . . . . Robots Melted . | . . . . . Combat Hostiles . | . . . . . Parts Melted 2 | . 2 . . . Heat Transferred 666 | 148 370 . . 148 Parts Sabotaged . | . . . . . Parts Stolen . | . . . . . Parts Stripped . | . . . . . Power Chain Reactions . | . . . . . Alert | -11 -10 -10 -10 -8 ------- Run | Yrd Mat Min Sub Mat Maximum Alert Level . | . . . . . Low Security (%) 100 | 100 100 100 . 100 Level 1 . | . . . . . Level 2 . | . . . . . Level 3 . | . . . . . Level 4 . | . . . . . Level 5 . | . . . . . High Security . | . . . . . Max Security . | . . . . . Peak Influence 50 | 5 50 2 . 30 Initial 2 | . . 2 . . Average 4 | 1 9 . . 2 Influence Increases 198 | 10 98 . . 90 Destroy 0b10 Robot/C 120 | . 40 . . 80 Destroy 0b10 Robot/NC 25 | 10 15 . . . Destroy Leader 24 | . 14 . . 10 Successful Hack 29 | . 29 . . . Influence Decreases 198 | 10 91 7 . 90 Entered New Map 5 | . . 5 . . Time Decay 143 | 10 91 2 . 40 Lost Part 50 | . . . . 50 Squads Dispatched . | . . . . . Investigation . | . . . . . Extermination . | . . . . . Reinforcement . | . . . . . Assault . | . . . . . Garrison . | . . . . . Intercept . | . . . . . Searches Triggered . | . . . . . Construction Impeded . | . . . . . Haulers Reinforced . | . . . . . Active Scanning Responses . | . . . . . Cargo Convoy Interrupts . | . . . . . Stealth | -11 -10 -10 -10 -8 --------- Run | Yrd Mat Min Sub Mat Distress Signals 3 | . . . . 3 Communications Jammed . | . . . . . Distress Signals . | . . . . . Times Spotted 27 | . 5 . 4 18 Peak Tracking Total 12 | . 4 . 4 12 Tactical Retreats . | . . . . . Traps | -11 -10 -10 -10 -8 ------- Run | Yrd Mat Min Sub Mat Traps Triggered . | . . . . . Indirectly . | . . . . . Trap Hack Attempts . | . . . . . Triggered . | . . . . . Disarmed . | . . . . . Reprogrammed . | . . . . . Reused . | . . . . . Traps Extracted . | . . . . . Installed . | . . . . . Triggered . | . . . . . Machines | -11 -10 -10 -10 -8 ---------- Run | Yrd Mat Min Sub Mat Machines Disabled . | . . . . . Max in Single Turn . | . . . . . Machines Repaired . | . . . . . Machines Dismantled . | . . . . . Machines Sabotaged . | . . . . . Overloaded Fab Kills . | . . . . . Hacking | -11 -10 -10 -10 -8 --------- Run | Yrd Mat Min Sub Mat Machines Accessed 6 | . 6 . . . Terminals 4 | . 4 . . . Fabricators . | . . . . . Repair Stations 1 | . 1 . . . Recycling Units 1 | . 1 . . . Scanalyzers . | . . . . . Garrison Access . | . . . . . Total Hacks 23 | . 23 . . . Successful 10 | . 10 . . . Failed 13 | . 13 . . . Catastrophic 1 | . 1 . . . Database Lockouts . | . . . . . Manual 11 | . 11 . . . Terminals 17 | . 17 . . . Fabricators . | . . . . . Repair Stations 3 | . 3 . . . Recycling Units 3 | . 3 . . . Scanalyzers . | . . . . . Garrison Access . | . . . . . Terminal Hacks 3 | . 3 . . . Prototype ID Bank 1 | . 1 . . . Branch Access Points 1 | . 1 . . . Registered Components 1 | . 1 . . . Fabricator Hacks . | . . . . . Repair Station Hacks 1 | . 1 . . . Scan Component 1 | . 1 . . . Recycling Unit Hacks 2 | . 2 . . . Report Inventory 1 | . 1 . . . Retrieve Components 1 | . 1 . . . Scanalyzer . | . . . . . Garrison Access Hacks . | . . . . . Unauthorized Hacks 4 | . 4 . . . Terminals 4 | . 4 . . . Botnet 4 | . 4 . . . Fabricators . | . . . . . Repair Stations . | . . . . . Recycling Units . | . . . . . Scanalyzers . | . . . . . Garrison Access . | . . . . . Data Cores Recovered . | . . . . . Used . | . . . . . Hacking Detections 3 | . 3 . . . Full Trace Events 2 | . 2 . . . Feedback Events . | . . . . . Feedback Blocked . | . . . . . Robot Schematics Acquired . | . . . . . Robots Built . | . . . . . Authchips . | . . . . . Time . | . . . . . Total Robot Build Rating . | . . . . . Part Schematics Acquired . | . . . . . Parts Built . | . . . . . Authchips . | . . . . . Time . | . . . . . Total Part Build Rating . | . . . . . Parts Repaired . | . . . . . Time . | . . . . . Parts Recycled . | . . . . . Recycled Matter . | . . . . . Retrieved Matter . | . . . . . Retrieved Components 3 | . 3 . . . Parts Scanalyzed . | . . . . . Part Schematics Acquired . | . . . . . Parts Damaged . | . . . . . Bothacking | -11 -10 -10 -10 -8 ------------ Run | Yrd Mat Min Sub Mat Used RIF Installer . | . . . . . Robots Hacked . | . . . . . Non-combat . | . . . . . Combat . | . . . . . Robot Hacks Applied . | . . . . . Relay Couplers Released . | . . . . . Fabnet Peak Effective % . | . . . . . Robots Rewired . | . . . . . Allies Hacked . | . . . . . Hacks Repelled . | . . . . . Allies | -11 -10 -10 -10 -8 -------- Run | Yrd Mat Min Sub Mat Total Allies . | . . . . . Largest Group . | . . . . . Highest-Rated Group . | . . . . . Highest-Rated Ally . | . . . . . Total Orders . | . . . . . Ally Attacks . | . . . . . Total Damage . | . . . . . Kills . | . . . . . Allies Corrupted . | . . . . . Allies Melted . | . . . . . Intel | -11 -10 -10 -10 -8 ------- Run | Yrd Mat Min Sub Mat Active Infowar (turns) 946 | 13 343 92 109 389 Optics 387 | . . . . 387 Seismic 942 | 13 343 92 109 385 Robot Analysis Total . | . . . . . Derelict Logs Recovered . | . . . . . Drone Launches . | . . . . . Drone Recoveries . | . . . . . Exploration | -11 -10 -10 -10 -8 ------------- Run | Yrd Mat Min Sub Mat Turns Passed 1038 | 84 343 92 109 410 Spaces Moved 673 | 51 296 73 86 167 Core 41 | 5 . . . 36 Treads . | . . . . . Legs . | . . . . . Wheels 632 | 46 296 73 86 131 Hover . | . . . . . Flight . | . . . . . Fastest Speed 50 | 50 100 100 100 50 Average Speed 97 | 95 100 100 100 89 Slowest Speed 150 | 100 100 100 100 150 Overloaded Moves . | . . . . . Propulsion Burnouts . | . . . . . Robots Hopped . | . . . . . Potential Cave-ins . | . . . . . Cave-ins Triggered . | . . . . . Exploration Rate (%) 21 | 3 60 16 7 22 Regions Visited 4 Branch Regions 2 Pre-discovered Areas . | . . . . . Known Exits Taken 1 | . 1 . . . Unknown Exits Taken 3 | 1 . 1 1 . Scrap Searched . | . . . . . Spaces Dug . | . . . . . Terrain Destroyed 36 | . . . 36 . Melee . | . . . . . Projectile . | . . . . . AOE 36 | . . . 36 . Terrain Rammed . | . . . . . Walls Destroyed . | . . . . . Machines Disabled . | . . . . . Actions | -11 -10 -10 -10 -8 --------- Run | Yrd Mat Min Sub Mat Total 965 | 79 314 92 98 382 Wait 160 | . . 20 . 140 Move 669 | 50 295 72 85 167 Hop . | . . . . . Pick Up 30 | 16 2 . 3 9 Fast Attach 3 | . . . . 3 Attach 18 | 7 . . 1 10 Detach 1 | . . . . 1 Swap 6 | . . . 1 5 Drop 9 | 2 2 . 2 3 Fire 69 | 4 15 . 6 44 Melee . | . . . . . Ram . | . . . . . Kick . | . . . . . Crush . | . . . . . Escape Stasis . | . . . . . Rewire . | . . . . . Trap . | . . . . . Miscellaneous . | . . . . . Route ------- -11/Scrapyard -10/Materials (discovered 3 exits: [*Mat] / *Min x2) -10/Mines (discovered 2 exits: [*Mat] / [*Sub]) -10/Subcaves -8/Materials History --------- Turn | Location | Event 16 | -11/Scrapyard | Discovered new exit (range 16) 85 | -11/Scrapyard | Entered Materials 232 | -10/Materials | Discovered new exit (range 15) 317 | -10/Materials | Build established: Mutant 398 | -10/Materials | Identified exit to Mines 428 | -10/Materials | Entered Mines 451 | -10/Mines | Discovered new exit (range 12) 473 | -10/Mines | Discovered new exit (range 5) 520 | -10/Mines | Entered Subcaves 606 | -10/Subcaves | Discovered new exit (range 14) 629 | -10/Subcaves | Entered Materials 629 | -8/Materials | Evolved 4 slots: Propulsion x1, Utility x2, Weapon x1 954 | -8/Materials | Core integrity fell below 50% 986 | -8/Materials | Lost 10 parts (1p4n1u4w) 1021 | -8/Materials | Core integrity fell below 20% 1039 | -8/Materials | Destroyed by Y-45 Defender with Beam Rifle Last Messages --------------- 00955_ Lgt. Treads destroyed. 00962_ G-50 Soldier destroyed. 00964_ Extracted 100 matter. 00965_ Acquired 57 matter. 00969_ Acquired 10 matter. 00971_ Acquired Lgt. Ion Engine. 00975_ Acquired 10 matter. 00979_ Acquired Com. Wheel. 00980_ Acquired 10 matter. 00982_ Acquired Com. Wheel. 00985_ Dropped Wheel. 00986_ Acquired Com. Wheel. 00986_ Lgt. Assault Rifle destroyed. 00988_ Acquired 15 matter. 00997_ W-25 Informer sends out distress signal. 01002_ Lgt. Ion Engine destroyed. 01012_ Com. Wheel destroyed. 01014_ Seismic Detector destroyed. 01018_ Sub. Optics destroyed. 01022_ Com. Wheel destroyed. Map ----- +----------------------------------------------------+ | ????????# #??????????# #??????????? | | ######### #??????????# #??????????? | | #??????????# #??????????? | | ######### #??????????# #??????????? | | ##??????# #??????????# #??????????? | | ????# #??????????# #??????????? | | """ ??# #??????????# #??????????? | | """ # #??????????# #??????????? | | """ + #??????????# #??????????? | | # #??????????# #??????????? | | "??# ##########?# #???#####??? | | * ????# # """ #?# #?? ??? | | ??????# # "Y" ### ##? """ ??? | | ????????# # ## # """ ?? | | ????????# # ## # """ #? | | ????????# / + a " #? | | ? # """ ## Y # """ #? | | # """ ! ## # """ ?? | | # """ #### ###? """ ??? | | ###+####### #??# #??? ??? | | ????????????##########??# #????#####??? | | ????????????????????????# #???????????? | | ????????????????????????# #???????????? | | ????????????????????????# #???????????? | | ????????????????????????# #???????????? | | ????????????????????????#@#???????????? | | ????????????????????????# #???????????? | | ????????????????????????# +???????????? | | ????????????????????????# #???????????? | | ????????????????????????# #???????????? | | ????????????????????????# #???????????? | | ????????????????????????# #???????????? | | ????????????????????????# #???????????? | | ???????????????????????? ???????????? | | ???????????????????????? ???????????? | | ???????????????????????? ???????????? | | ????????????????????????###???????????? | | ??????????????????????????????????????? | | ??????????????????????????????????????? | | ??????????????????????????????????????? | | ??????????????????????????????????????? | | ??????????????????????????????????????? | | ??????????????????????????????????????? | | ??????????????????????????????????????? | | ??????????????????????????????????????? | | ??????????????????????????????????????? | | ??????????????????????????????????????? | | ??????????????????????????????????????? | | ??????????????????????????????????????? | | ??????????????????????????????????????? | +----------------------------------------------------+ Best States ------------- Heat Dissipation 31 Energy Generation 10 Energy Capacity 125 Matter Stores 300 Matter Capacity 300 Sight Range 21 Terrain Scan Density 10 Resistance: EX 25 Evasion (%) 50 Recoil Reduction 1 Item Schematics ----------------- None Robot Schematics ------------------ None Fabricated ------------ Nothing Repaired ---------- Nothing Alien Tech Used ----------------- None Achievements -------------- None Challenges ------------ None Game ------ Seed MakeshiftGravitonMatterbank Manual? 0 Play Time 00:17:55 Cumulative 33.5 hours Start 2025.07.22 @ 19:06:41 End 2025.07.22 @ 19:25:30 Sessions 1 Manual Loads 0 Difficulty Rogue Special Mode None Game No. 84 Rogue 84 Adventurer 0 Explorer 0 Win Type - Total 0 Types 0/0/0/0/0/0/0/0/0/0 Lore% 32 Gallery% 32 Achievement% 25 Wizard Run 0 Options --------- Layout 1 ASCII 0 Keyboard 0 Movement Mouse Keybinds 0 Fullscreen 1 Font 24/Smallcaps Map View 50x35 Zoom Use 0% Tactical HUD 1 Map Filters NONE Filters NONE Steam 1 RUN: a4491943-1885-4874-bc5f-e577070743da